[Event "Athens of East GM-Open 2019"]
[Site "Madurai"]
[Date "2019.08.14"]
[Round "5.16"]
[White "Arnav Maheshwari"]
[Black "Saravana, Krishnan P."]
[Result "1/2-1/2"]
[ECO "C03"]
[WhiteElo "1966"]
[BlackElo "2277"]
[Annotator "NA"]
[PlyCount "64"]
[EventDate "2019.08.11"]
[EventType "swiss"]
[EventCountry "IND"]
[SourceTitle "playchess.com"]
[Source "ChessBase"]
[SourceQuality "1"]
[TimeControl "5400+30"]

1. e4 {[%emt 0:00:00]} e6 {[%emt 0:00:00]} 2. d4 {[%emt 0:00:00]} d5 {[%emt 0:00:00]} 3. Nd2 {[%emt 0:00:00]} h6 {[%emt 0:02:49]} 4. Ngf3 {[%emt 0:02:31]} Nf6 {[%emt 0:00:07]} 5. Bd3 {[%emt 0:03:19]} c5 {[%emt 0:00:29]} 6. exd5 {[%emt 0:00:15]} exd5 {[%emt 0:00:59]} 7. Qe2+ {[%emt 0:00:40]} Be7 {[%emt 0:01:22]} 8. dxc5 {[%emt 0:00:33]} O-O {[%emt 0:00:37]} 9. O-O {[%emt 0:02:43]} Bxc5 {[%emt 0:00:48]} 10. Nb3 {[%emt 0:00:18]} Re8 {[%emt 0:02:18]} 11. Qd1 {[%emt 0:01:35]} Bb6 {[%emt 0:01:18]} 12. Re1 {[%emt 0:01:07]} Nc6 {[%emt 0:02:46]} 13. h3 {[%emt 0:02:40]} Bd7 {[%emt 0:10:09]} 14. c3 {[%emt 0:04:18]} Qc7 {[%emt 0:07:11]} 15. Nbd4 {[%emt 0:03:46]} Rxe1+ {[%emt 0:03:46]} 16. Qxe1 {[%emt 0:00:29]} Re8 {[%emt 0:00:07]} 17. Be3 {[%emt 0:10:35]} Ne5 {[%emt 0:18:04]} 18. Nxe5 {[%emt 0:07:06]} Qxe5 {[%emt 0:00:21]} 19. Qf1 {[%emt 0:20:25]} Qd6 {[%emt 0:04:23]} 20. Bb5 {[%emt 0:04:19]} Re4 {[%emt 0:07:08]} 21. Bxd7 {[%emt 0:01:52]} Qxd7 {[%emt 0:02:21]} 22. Re1 {[%emt 0:02:24]} Qa4 {[%emt 0:04:35]} 23. Ra1 {[%emt 0:04:58]} Qe8 {[%emt 0:04:09]} 24. Qd3 {[%emt 0:02:26]} Nd7 {[%emt 0:06:34]} 25. Nc2 {[%emt 0:05:51]} Qe5 {[%emt 0:02:05]} 26. Rd1 {[%emt 0:03:56]} Bc7 {[%emt 0:02:01]} 27. Qxd5 {[%emt 0:05:28]} Qh2+ {[%emt 0:09:27]} 28. Kf1 {[%emt 0:00:04]} Nf6 {[%emt 0:00:10]} 29. Qxb7 {[%emt 0:00:13]} Kh7 {[%emt 0:00:15]} 30. Rd4 {[%emt 0:11:09]} Re7 {[%emt 0:08:41]} 31. Rd1 Re4 {[%emt 0:00:30]} 32. Qc8 {[%emt 0:01:00]} Bb6 {[%emt 0:00:30]} 1/2-1/2

[Event "Athens of East GM-Open 2019"]
[Site "Madurai"]
[Date "2019.08.14"]
[Round "5.18"]
[White "Ayushh Ravikumar"]
[Black "Sahoo, Utkal Ranjan"]
[Result "0-1"]
[ECO "E10"]
[WhiteElo "1946"]
[BlackElo "2278"]
[Annotator "ChessBase"]
[PlyCount "176"]
[EventDate "2019.08.11"]
[EventType "swiss"]
[EventCountry "IND"]
[SourceTitle "playchess.com"]
[Source "ChessBase"]
[SourceQuality "1"]
[TimeControl "5400+30"]

1. d4 {[%emt 0:01:46]} Nf6 {[%emt 0:00:03]} 2. Nf3 {[%emt 0:01:04]} e6 {[%emt 0:00:16]} 3. c4 {[%emt 0:00:37]} c5 {[%emt 0:00:40]} 4. d5 {[%emt 0:01:20]} b5 {[%emt 0:00:38]} 5. e4 {[%emt 0:02:55]} Nxe4 {[%emt 0:01:30]} 6. Bd3 {[%emt 0:00:40]} Nf6 {[%emt 0:00:52]} 7. O-O {[%emt 0:06:56]} d6 {[%emt 0:19:24]} 8. dxe6 {[%emt 0:03:32]} Bxe6 {[%emt 0:00:58]} 9. cxb5 {[%emt 0:08:08]} Be7 {[%emt 0:08:11]} 10. Ng5 {[%emt 0:06:39]} Bg4 {[%emt 0:06:52]} 11. Qc2 {[%emt 0:15:37]} h6 {[%emt 0:02:51]} 12. Ne4 {[%emt 0:00:30]} Nbd7 {[%emt 0:01:21]} 13. Bf4 {[%emt 0:02:05]} O-O {[%emt 0:09:02]} 14. h3 {[%emt 0:04:42]} Bh5 {[%emt 0:15:02]} 15. Nxf6+ {[%emt 0:10:22]} Nxf6 {[%emt 0:00:06]} 16. g4 {[%emt 0:01:20]} Bg6 {[%emt 0:06:22]} 17. Bxg6 {[%emt 0:03:43]} fxg6 {[%emt 0:00:02]} 18. Qxg6 {[%emt 0:01:07]} Kh8 {[%emt 0:00:29]} 19. Nc3 {[%emt 0:01:37]} Qd7 {[%emt 0:01:31]} 20. Rad1 {[%emt 0:04:42]} d5 {[%emt 0:05:36]} 21. Bxh6 {[%emt 0:13:15]} gxh6 {[%emt 0:00:07]} 22. Qxh6+ {[%emt 0:01:07]} Nh7 {[%emt 0:00:32]} 23. Rxd5 {[%emt 0:05:05]} Qb7 {[%emt 0:00:29]} 24. Qc6 {[%emt 0:01:49]} Qb8 {[%emt 0:00:51]} 25. Rh5 {[%emt 0:01:19]} Rf7 {[%emt 0:02:04]} 26. Qe6 {[%emt 0:00:31]} Qg8 {[%emt 0:01:09]} 27. Nd5 {[%emt 0:00:30]} Bg5 {[%emt 0:04:38]} 28. f4 {[%emt 0:00:30]} Re8 {[%emt 0:00:44]} 29. Qc6 {[%emt 0:00:30]} Bd8 {[%emt 0:02:12]} 30. Qxc5 {[%emt 0:00:30]} Qg7 {[%emt 0:01:31]} 31. Qc3 {[%emt 0:00:25]} Bf6 {[%emt 0:01:12]} 32. Nxf6 {[%emt 0:00:24]} Rxf6 {[%emt 0:00:01]} 33. g5 {[%emt 0:00:29]} Rd6 {[%emt 0:00:15]} 34. Qxg7+ {[%emt 0:00:43]} Kxg7 {[%emt 0:00:02]} 35. f5 {[%emt 0:00:29]} Nf8 {[%emt 0:01:06]} 36. Rh4 {[%emt 0:00:25]} Re3 {[%emt 0:00:28]} 37. Ra4 {[%emt 0:00:34]} Rg3+ {[%emt 0:00:15]} 38. Kh2 {[%emt 0:00:31]} Rdd3 {[%emt 0:01:01]} 39. Rxa7+ {[%emt 0:00:27]} Kg8 {[%emt 0:00:01]} 40. Rf4 {[%emt 0:00:34]} Rxh3+ {[%emt 0:00:14]} 41. Kg2 {[%emt 0:00:06]} Rdg3+ {[%emt 0:00:20]} 42. Kf2 {[%emt 0:00:23]} Rxg5 {[%emt 0:00:08]} 43. b3 {[%emt 0:01:00]} Rh6 {[%emt 0:05:06]} 44. Kf3 {[%emt 0:00:29]} Rd6 {[%emt 0:00:40]} 45. Rg4 {[%emt 0:00:25]} Rxg4 {[%emt 0:00:02]} 46. Kxg4 {[%emt 0:00:06]} Nd7 {[%emt 0:00:02]} 47. Rc7 {[%emt 0:01:00]} Kf7 {[%emt 0:00:24]} 48. a4 {[%emt 0:00:22]} Kf6 {[%emt 0:00:20]} 49. Kf4 {[%emt 0:00:28]} Ke7 {[%emt 0:02:56]} 50. Ke4 {[%emt 0:00:37]} Kd8 {[%emt 0:01:09]} 51. Rc6 {[%emt 0:00:27]} Rd1 {[%emt 0:00:37]} 52. a5 {[%emt 0:00:34]} Ra1 {[%emt 0:00:02]} 53. a6 {[%emt 0:00:31]} Ra5 {[%emt 0:00:01]} 54. b4 {[%emt 0:00:31]} Rxb5 {[%emt 0:00:11]} 55. Rh6 {[%emt 0:00:30]} Rxb4+ {[%emt 0:00:12]} 56. Kd5 {[%emt 0:00:27]} Rb5+ {[%emt 0:00:08]} 57. Ke4 {[%emt 0:00:25]} Ra5 {[%emt 0:00:03]} 58. Kf4 {[%emt 0:00:34]} Ke7 {[%emt 0:01:14]} 59. Rh7+ {[%emt 0:00:27]} Ke8 {[%emt 0:00:26]} 60. Rh8+ {[%emt 0:00:32]} Nf8 {[%emt 0:01:03]} 61. Rh6 {[%emt 0:00:22]} Ra4+ {[%emt 0:00:42]} 62. Ke3 {[%emt 0:00:43]} Nd7 {[%emt 0:00:28]} 63. Rc6 {[%emt 0:00:30]} Ke7 {[%emt 0:00:29]} 64. Re6+ {[%emt 0:00:18]} Kf7 {[%emt 0:00:12]} 65. Rc6 {[%emt 0:00:26]} Ne5 {[%emt 0:01:58]} 66. Re6 {[%emt 0:00:46]} Nd7 {[%emt 0:00:28]} 67. Rc6 {[%emt 0:00:06]} Nf6 {[%emt 0:02:25]} 68. Rd6 {[%emt 0:00:51]} Ne8 {[%emt 0:01:36]} 69. Rb6 {[%emt 0:00:30]} Ng7 {[%emt 0:00:00]} 70. Kd3 {[%emt 0:00:34]} Nxf5 {[%emt 0:00:00]} 71. Kc3 {[%emt 0:00:29]} Ke7 {[%emt 0:00:01]} 72. Rb7+ {[%emt 0:00:29]} Kd6 {[%emt 0:00:20]} 73. a7 {[%emt 0:00:31]} Ne7 {[%emt 0:00:12]} 74. Kb3 {[%emt 0:00:24]} Ra1 {[%emt 0:00:18]} 75. Kb2 {[%emt 0:00:34]} Ra5 {[%emt 0:00:14]} 76. Kc3 {[%emt 0:00:25]} Nc6 {[%emt 0:00:10]} 77. Rh7 {[%emt 0:00:21]} Nxa7 {[%emt 0:00:14]} 78. Rh6+ {[%emt 0:00:07]} Kc7 {[%emt 0:00:07]} 79. Kb4 {[%emt 0:00:13]} Ra1 {[%emt 0:00:10]} 80. Kc5 {[%emt 0:00:18]} Rc1+ {[%emt 0:00:05]} 81. Kd5 {[%emt 0:00:08]} Nc6 {[%emt 0:00:08]} 82. Ke4 {[%emt 0:00:23]} Rd1 {[%emt 0:00:12]} 83. Rh7+ {[%emt 0:00:16]} Kd6 {[%emt 0:00:08]} 84. Rh5 {[%emt 0:00:30]} Rd4+ {[%emt 0:00:31]} 85. Ke3 {[%emt 0:00:06]} Ra4 {[%emt 0:00:07]} 86. Rg5 {[%emt 0:00:26]} Ne7 {[%emt 0:00:26]} 87. Rh5 {[%emt 0:00:44]} Nd5+ {[%emt 0:00:08]} 88. Kd3 {[%emt 0:01:22]} Nf4+ {[%emt 0:06:29] Kd4 Ke5+} 0-1

[Event "Athens of East GM-Open 2019"]
[Site "Madurai"]
[Date "2019.08.14"]
[Round "5.19"]
[White "Aaryan Varshney"]
[Black "Komal Srivatsav Sajja"]
[Result "1-0"]
[ECO "A59"]
[WhiteElo "2272"]
[BlackElo "1875"]
[Annotator "NA"]
[PlyCount "115"]
[EventDate "2019.08.11"]
[EventType "swiss"]
[EventCountry "IND"]
[SourceTitle "playchess.com"]
[Source "ChessBase"]
[SourceQuality "1"]
[TimeControl "5400+30"]

1. d4 {[%emt 0:00:00]} Nf6 {[%emt 0:00:00]} 2. c4 {[%emt 0:00:00]} c5 {[%emt 0:00:00]} 3. d5 {[%emt 0:00:00]} b5 {[%emt 0:00:00]} 4. cxb5 {[%emt 0:00:00]} a6 {[%emt 0:00:00]} 5. bxa6 {[%emt 0:00:00]} g6 {[%emt 0:00:00]} 6. Nc3 {[%emt 0:00:55]} Bxa6 {[%emt 0:00:00]} 7. e4 {[%emt 0:00:17]} Bxf1 {[%emt 0:00:00]} 8. Kxf1 {[%emt 0:00:01]} d6 {[%emt 0:00:00]} 9. g3 {[%emt 0:00:07]} Bg7 {[%emt 0:00:00]} 10. Kg2 {[%emt 0:00:05]} Nbd7 {[%emt 0:00:10]} 11. Nf3 {[%emt 0:00:07]} O-O {[%emt 0:00:05]} 12. Qe2 {[%emt 0:00:40]} Ng4 {[%emt 0:00:09]} 13. Nd2 {[%emt 0:01:13]} Ngf6 {[%emt 0:01:09]} 14. a4 {[%emt 0:00:16]} Qc8 {[%emt 0:00:22]} 15. Nc4 {[%emt 0:01:55]} Ra6 {[%emt 0:00:17]} 16. Nb5 {[%emt 0:01:44]} Qb7 {[%emt 0:00:13]} 17. Ra3 {[%emt 0:01:26]} Nb6 {[%emt 0:01:18]} 18. Nxb6 {[%emt 0:00:59]} Rxb6 {[%emt 0:00:42]} 19. Rd1 {[%emt 0:04:30]} Nd7 {[%emt 0:01:16]} 20. b3 {[%emt 0:06:57]} Nb8 {[%emt 0:05:10]} 21. Bd2 {[%emt 0:02:59]} Rc8 {[%emt 0:08:59]} 22. Ra2 {[%emt 0:02:23]} Nd7 {[%emt 0:01:24]} 23. Rc2 {[%emt 0:03:48]} Nf6 {[%emt 0:03:03]} 24. b4 {[%emt 0:07:56]} Nd7 {[%emt 0:00:54]} 25. bxc5 {[%emt 0:00:55]} Nxc5 {[%emt 0:00:09]} 26. Be3 {[%emt 0:00:59]} Qa8 {[%emt 0:04:23]} 27. Bxc5 {[%emt 0:01:05]} dxc5 {[%emt 0:00:38]} 28. Rc4 {[%emt 0:04:41]} e6 {[%emt 0:04:03]} 29. Qf3 {[%emt 0:01:49]} Rd8 {[%emt 0:03:59]} 30. dxe6 {[%emt 0:02:27]} fxe6 {[%emt 0:01:24]} 31. Rxd8+ {[%emt 0:00:34]} Qxd8 {[%emt 0:00:03]} 32. Rxc5 {[%emt 0:00:30]} Rb7 {[%emt 0:02:25]} 33. Qb3 {[%emt 0:01:05]} Qd7 {[%emt 0:09:55]} 34. Qc4 {[%emt 0:00:56]} h6 {[%emt 0:09:28]} 35. Rc6 {[%emt 0:00:37]} Kh7 {[%emt 0:01:21]} 36. Qxe6 {[%emt 0:00:31]} Qxe6 {[%emt 0:00:10]} 37. Rxe6 {[%emt 0:00:07]} Rb8 {[%emt 0:00:02]} 38. Re7 {[%emt 0:00:24]} Ra8 {[%emt 0:00:10]} 39. Ra7 {[%emt 0:00:11]} Re8 {[%emt 0:00:05]} 40. f3 {[%emt 0:00:24]} Rd8 {[%emt 0:00:08]} 41. a5 {[%emt 0:00:25]} Rb8 {[%emt 0:00:07]} 42. Nc7 {[%emt 0:00:15]} Rb2+ {[%emt 0:00:06]} 43. Kh3 {[%emt 0:04:32]} Bd4 {[%emt 0:00:08]} 44. Ra8 {[%emt 0:00:28]} Rb7 {[%emt 0:00:07]} 45. Nd5 {[%emt 0:01:20]} Bg1 {[%emt 0:00:15]} 46. Kg2 {[%emt 0:00:41]} Bd4 {[%emt 0:00:07]} 47. h4 {[%emt 0:07:03]} h5 {[%emt 0:00:26]} 48. f4 {[%emt 0:00:38]} Rb2+ {[%emt 0:00:07]} 49. Kf1 {[%emt 0:00:30]} Bf2 {[%emt 0:00:11]} 50. e5 {[%emt 0:01:08]} Bxg3 {[%emt 0:00:13]} 51. Ra7+ {[%emt 0:00:23]} Kg8 {[%emt 0:00:07]} 52. Ne7+ {[%emt 0:00:34]} Kf8 {[%emt 0:00:30]} 53. Nxg6+ {[%emt 0:00:05]} Ke8 {[%emt 0:00:02]} 54. e6 {[%emt 0:00:29]} Rb8 {[%emt 0:00:14]} 55. Rg7 {[%emt 0:00:17]} Kd8 {[%emt 0:00:05]} 56. Rg8+ {[%emt 0:00:13]} Kc7 {[%emt 0:00:01]} 57. Rxb8 {[%emt 0:00:08]} Kxb8 {[%emt 0:00:01]} 58. e7 {[%emt 0:00:07]} 1-0

[Event "Athens of East GM-Open 2019"]
[Site "Madurai"]
[Date "2019.08.14"]
[Round "6.1"]
[White "Konguvel, Ponnuswamy"]
[Black "Venkatesh, M.R."]
[Result "0-1"]
[ECO "C78"]
[WhiteElo "2343"]
[BlackElo "2480"]
[Annotator "ChessBase"]
[PlyCount "116"]
[EventDate "2019.08.11"]
[EventType "swiss"]
[EventCountry "IND"]
[SourceTitle "playchess.com"]
[Source "ChessBase"]
[SourceQuality "1"]
[TimeControl "5400+30"]

1. e4 {[%emt 0:00:00]} e5 {[%emt 0:01:38]} 2. Nf3 {[%emt 0:00:00]} Nc6 {[%emt 0:00:06]} 3. Bb5 {[%emt 0:00:11]} a6 {[%emt 0:00:07]} 4. Ba4 {[%emt 0:00:14]} Nf6 {[%emt 0:00:06]} 5. O-O {[%emt 0:00:21]} Bc5 {[%emt 0:00:05]} 6. c3 {[%emt 0:01:34]} b5 {[%emt 0:00:06]} 7. Bb3 {[%emt 0:06:37]} d6 {[%emt 0:00:12]} 8. a4 {[%emt 0:04:41]} Bg4 {[%emt 0:00:26]} 9. h3 {[%emt 0:07:29]} Bxf3 {[%emt 0:00:28]} 10. Qxf3 {[%emt 0:00:04]} Na5 {[%emt 0:00:08]} 11. Bc2 {[%emt 0:04:31]} b4 {[%emt 0:00:14]} 12. d3 {[%emt 0:02:51]} Rb8 {[%emt 0:00:54]} 13. Nd2 {[%emt 0:04:39]} O-O {[%emt 0:02:43]} 14. Rb1 {[%emt 0:01:00]} b3 {[%emt 0:09:17]} 15. Bd1 {[%emt 0:00:44]} Qd7 {[%emt 0:01:16]} 16. Ra1 {[%emt 0:03:37]} d5 {[%emt 0:14:32]} 17. Qg3 {[%emt 0:30:26]} Rfe8 {[%emt 0:06:24]} 18. Re1 {[%emt 0:03:41]} Re6 {[%emt 0:15:31]} 19. Bf3 {[%emt 0:04:16]} c6 {[%emt 0:10:34]} 20. exd5 {[%emt 0:10:27]} cxd5 {[%emt 0:00:17]} 21. Nf1 {[%emt 0:00:09]} Rbe8 {[%emt 0:03:53]} 22. Bh6 {[%emt 0:02:44]} Bf8 {[%emt 0:01:07]} 23. Bg5 {[%emt 0:00:17]} e4 {[%emt 0:03:15]} 24. dxe4 {[%emt 0:00:10]} Nxe4 {[%emt 0:00:18]} 25. Bxe4 {[%emt 0:00:15]} dxe4 {[%emt 0:04:32]} 26. Red1 {[%emt 0:01:09]} Qc6 {[%emt 0:02:35]} 27. Ne3 {[%emt 0:00:04]} Rg6 {[%emt 0:01:41]} 28. Qh4 {[%emt 0:01:09]} h6 {[%emt 0:01:51]} 29. Bf4 {[%emt 0:00:59]} Nc4 {[%emt 0:01:59]} 30. Nxc4 {[%emt 0:00:37]} Qxc4 {[%emt 0:00:03]} 31. Rd4 {[%emt 0:02:30]} Qe2 {[%emt 0:06:58]} 32. Rd2 {[%emt 0:00:04]} Qf3 {[%emt 0:00:12]} 33. Bg3 {[%emt 0:00:13]} Qf5 {[%emt 0:00:22]} 34. Qf4 {[%emt 0:02:16]} Qe6 {[%emt 0:00:02]} 35. Re1 {[%emt 0:00:31]} f5 {[%emt 0:00:22]} 36. Qc7 {[%emt 0:03:09]} Rf6 {[%emt 0:02:47]} 37. f4 {[%emt 0:02:20]} e3 {[%emt 0:02:21]} 38. Rde2 {[%emt 0:00:01]} Qd5 {[%emt 0:01:28]} 39. Kh2 {[%emt 0:01:17]} Bc5 {[%emt 0:02:09]} 40. Qa5 {[%emt 0:01:30]} Rd6 {[%emt 0:02:50]} 41. Bf2 {[%emt 0:00:23]} Qc4 {[%emt 0:03:19]} 42. Bg1 {[%emt 0:00:59]} Re4 {[%emt 0:00:59]} 43. Kh1 {[%emt 0:00:31]} Rde6 {[%emt 0:00:43]} 44. Qc7 {[%emt 0:00:33]} Qd5 {[%emt 0:00:28]} 45. c4 {[%emt 0:00:29]} Rxc4 {[%emt 0:00:16]} 46. Qb8+ {[%emt 0:00:15]} Kh7 {[%emt 0:00:13]} 47. Qxb3 {[%emt 0:00:02]} Rb6 {[%emt 0:01:03]} 48. Rd1 {[%emt 0:01:18]} Qe4 {[%emt 0:00:33]} 49. Qd3 {[%emt 0:00:15]} Qxd3 {[%emt 0:00:28]} 50. Rxd3 {[%emt 0:00:01]} Rxf4 {[%emt 0:00:06]} 51. Bxe3 {[%emt 0:01:06]} Rf1+ {[%emt 0:00:05]} 52. Kh2 {[%emt 0:00:05]} Re6 {[%emt 0:00:10]} 53. b4 {[%emt 0:00:48]} Bxb4 {[%emt 0:00:47]} 54. Rb2 {[%emt 0:00:31]} Bd6+ {[%emt 0:00:05]} 55. g3 {[%emt 0:00:05]} Rf3 {[%emt 0:00:12]} 56. Rbb3 {[%emt 0:01:15]} f4 {[%emt 0:00:57]} 57. Bxf4 {[%emt 0:00:28]} Re2+ {[%emt 0:00:08]} 58. Kg1 {[%emt 0:00:26]} Bc5+ {[%emt 0:00:06]} 0-1

[Event "Athens of East GM-Open 2019"]
[Site "Madurai"]
[Date "2019.08.14"]
[Round "6.2"]
[White "Savchenko, Boris"]
[Black "Gupta, Abhijeet"]
[Result "1/2-1/2"]
[ECO "D75"]
[WhiteElo "2576"]
[BlackElo "2603"]
[Annotator "ChessBase"]
[PlyCount "60"]
[EventDate "2019.08.11"]
[EventType "swiss"]
[EventCountry "IND"]
[SourceTitle "playchess.com"]
[Source "ChessBase"]
[SourceQuality "1"]
[TimeControl "5400+30"]

1. Nf3 {[%emt 0:00:38]} Nf6 {[%emt 0:00:00]} 2. g3 {[%emt 0:00:03]} g6 {[%emt 0:00:00]} 3. Bg2 {[%emt 0:00:03]} Bg7 {[%emt 0:00:00]} 4. O-O {[%emt 0:00:05]} O-O {[%emt 0:00:00]} 5. c4 {[%emt 0:00:28]} c5 {[%emt 0:01:03]} 6. d4 {[%emt 0:00:14]} cxd4 {[%emt 0:00:05]} 7. Nxd4 {[%emt 0:00:04]} d5 {[%emt 0:00:15]} 8. cxd5 {[%emt 0:02:07]} Nxd5 {[%emt 0:00:36]} 9. Nc3 {[%emt 0:00:05]} Nxc3 {[%emt 0:01:02]} 10. bxc3 {[%emt 0:00:07]} Nc6 {[%emt 0:01:11]} 11. Nxc6 {[%emt 0:55:44]} bxc6 {[%emt 0:00:04]} 12. Be3 {[%emt 0:10:25]} Be6 {[%emt 0:03:19]} 13. Bxc6 {[%emt 0:10:35]} Rc8 {[%emt 0:03:18]} 14. Qa4 {[%emt 0:00:49]} Qd6 {[%emt 0:02:00]} 15. Bf3 {[%emt 0:03:49]} Rxc3 {[%emt 0:02:10]} 16. Rad1 {[%emt 0:00:18]} Qa3 {[%emt 0:23:18]} 17. Qxa7 {[%emt 0:01:45]} Qxa7 {[%emt 0:01:23]} 18. Bxa7 {[%emt 0:00:05]} Bxa2 {[%emt 0:00:09]} 19. Rd7 {[%emt 0:00:37]} Bf6 {[%emt 0:00:26]} 20. Bd4 {[%emt 0:00:18]} Bxd4 {[%emt 0:00:23]} 21. Rxd4 {[%emt 0:00:03]} Be6 {[%emt 0:00:10]} 22. Kg2 {[%emt 0:00:11]} Rfc8 {[%emt 0:00:09]} 23. h4 {[%emt 0:00:09]} Kg7 {[%emt 0:00:13]} 24. Rfd1 {[%emt 0:00:06]} R3c4 {[%emt 0:00:20]} 25. Rxc4 {[%emt 0:00:10]} Rxc4 {[%emt 0:00:04]} 26. Bd5 {[%emt 0:00:07]} Bxd5+ {[%emt 0:00:04]} 27. Rxd5 {[%emt 0:00:04]} h5 {[%emt 0:00:06]} 28. Rd2 {[%emt 0:00:10]} Rc6 {[%emt 0:00:08]} 29. Rb2 {[%emt 0:00:05]} Rc7 {[%emt 0:00:08]} 30. Rb3 {[%emt 0:00:06]} Rd7 {[%emt 0:00:06]} 1/2-1/2

[Event "Athens of East GM-Open 2019"]
[Site "Madurai"]
[Date "2019.08.14"]
[Round "6.3"]
[White "Smirnov, Pavel"]
[Black "Rathnakaran, K.."]
[Result "1-0"]
[ECO "A65"]
[WhiteElo "2574"]
[BlackElo "2344"]
[Annotator "ChessBase"]
[PlyCount "61"]
[EventDate "2019.08.11"]
[EventType "swiss"]
[EventCountry "IND"]
[SourceTitle "playchess.com"]
[Source "ChessBase"]
[SourceQuality "1"]
[TimeControl "5400+30"]

1. d4 {[%emt 0:00:00]} Nf6 {[%emt 0:00:00]} 2. c4 {[%emt 0:00:05]} c5 {[%emt 0:00:00]} 3. d5 {[%emt 0:00:44]} e6 {[%emt 0:00:00]} 4. Nc3 {[%emt 0:00:08]} exd5 {[%emt 0:00:00]} 5. cxd5 {[%emt 0:00:05]} d6 {[%emt 0:00:00]} 6. e4 {[%emt 0:00:12]} g6 {[%emt 0:00:00]} 7. Nge2 {[%emt 0:00:16]} Bg7 {[%emt 0:00:00]} 8. Ng3 {[%emt 0:00:05]} O-O {[%emt 0:00:08]} 9. Be2 {[%emt 0:00:03]} Na6 {[%emt 0:00:12]} 10. O-O {[%emt 0:00:06]} Nc7 {[%emt 0:00:15]} 11. Bg5 {[%emt 0:00:12]} h6 {[%emt 0:00:09]} 12. Be3 {[%emt 0:00:04]} a6 {[%emt 0:00:04]} 13. Qd2 {[%emt 0:08:10]} Kh7 {[%emt 0:00:06]} 14. e5 {[%emt 0:01:07]} dxe5 {[%emt 0:00:50]} 15. Bxc5 {[%emt 0:00:13]} Re8 {[%emt 0:00:05]} 16. Rfd1 {[%emt 0:02:07]} e4 {[%emt 0:00:16]} 17. Rac1 {[%emt 0:00:41]} Nb5 {[%emt 0:02:58]} 18. Nxb5 {[%emt 0:05:12]} axb5 {[%emt 0:00:06]} 19. Bxb5 {[%emt 0:00:03]} Bd7 {[%emt 0:00:05]} 20. Bxd7 {[%emt 0:04:59]} Nxd7 {[%emt 0:00:06]} 21. Ba3 {[%emt 0:00:07]} Qh4 {[%emt 0:00:31]} 22. d6 {[%emt 0:06:34]} Ne5 {[%emt 0:03:11]} 23. Rc7 {[%emt 0:02:51]} Ra4 {[%emt 0:03:22]} 24. Re7 {[%emt 0:12:58]} Rd8 {[%emt 0:00:11]} 25. Qd5 {[%emt 0:01:02]} e3 {[%emt 0:40:51]} 26. fxe3 {[%emt 0:20:38]} Ng4 {[%emt 0:01:29]} 27. h3 {[%emt 0:03:15]} Qxg3 {[%emt 0:00:57]} 28. hxg4 {[%emt 0:00:08]} Rxg4 {[%emt 0:00:05]} 29. Rf1 {[%emt 0:01:08]} Rc8 {[%emt 0:02:02]} 30. Qf3 {[%emt 0:02:45]} Qh4 {[%emt 0:00:24]} 31. Rxf7 {[%emt 0:01:05]} 1-0

[Event "Athens of East GM-Open 2019"]
[Site "Madurai"]
[Date "2019.08.14"]
[Round "6.4"]
[White "Kunal, M.."]
[Black "Tukhaev, Adam"]
[Result "1/2-1/2"]
[ECO "B51"]
[WhiteElo "2306"]
[BlackElo "2541"]
[Annotator "ChessBase"]
[PlyCount "70"]
[EventDate "2019.08.11"]
[EventType "swiss"]
[EventCountry "IND"]
[SourceTitle "playchess.com"]
[Source "ChessBase"]
[SourceQuality "1"]
[TimeControl "5400+30"]

1. e4 {[%emt 0:00:00]} c5 {[%emt 0:01:47]} 2. Nf3 {[%emt 0:00:00]} d6 {[%emt 0:00:06]} 3. Bb5+ {[%emt 0:00:00]} Nd7 {[%emt 0:00:23]} 4. c4 {[%emt 0:03:53]} e5 {[%emt 0:01:17]} 5. d3 {[%emt 0:00:44]} g6 {[%emt 0:03:13]} 6. O-O {[%emt 0:00:54]} Bg7 {[%emt 0:00:56]} 7. Nc3 {[%emt 0:01:40]} Ne7 {[%emt 0:05:18]} 8. Ne1 {[%emt 0:02:00]} O-O {[%emt 0:01:48]} 9. Bxd7 {[%emt 0:00:36]} Bxd7 {[%emt 0:00:54]} 10. Nc2 {[%emt 0:00:20]} f5 {[%emt 0:12:53]} 11. Bg5 {[%emt 0:05:28]} Qe8 {[%emt 0:14:00]} 12. Nb5 {[%emt 0:03:33]} Bxb5 {[%emt 0:02:18]} 13. Bxe7 {[%emt 0:01:29]} Qxe7 {[%emt 0:00:05]} 14. cxb5 {[%emt 0:00:06]} Bh6 {[%emt 0:01:03]} 15. Na3 {[%emt 0:10:22]} d5 {[%emt 0:06:12]} 16. exd5 {[%emt 0:00:11]} Rfd8 {[%emt 0:00:13]} 17. Qb3 {[%emt 0:00:18]} Qf7 {[%emt 0:00:18]} 18. Nc4 {[%emt 0:01:21]} Rxd5 {[%emt 0:02:47]} 19. Rfe1 {[%emt 0:00:07]} Bg7 {[%emt 0:03:20]} 20. Qa3 {[%emt 0:08:06]} Qe6 {[%emt 0:13:35]} 21. Ne3 {[%emt 0:01:35]} Rd7 {[%emt 0:01:34]} 22. Qxc5 {[%emt 0:00:31]} Rxd3 {[%emt 0:00:06]} 23. Rad1 {[%emt 0:00:40]} b6 {[%emt 0:06:12]} 24. Qc4 {[%emt 0:06:47]} Qxc4 {[%emt 0:00:20]} 25. Nxc4 {[%emt 0:00:05]} Rad8 {[%emt 0:01:43]} 26. Rxd3 {[%emt 0:00:28]} Rxd3 {[%emt 0:00:04]} 27. f3 {[%emt 0:00:28]} Kf7 {[%emt 0:01:34]} 28. Nxe5+ {[%emt 0:04:40]} Bxe5 {[%emt 0:00:05]} 29. Rxe5 {[%emt 0:00:04]} Rd2 {[%emt 0:00:06]} 30. Re3 {[%emt 0:00:04]} Rxb2 {[%emt 0:00:03]} 31. Ra3 {[%emt 0:00:05]} Rxb5 {[%emt 0:00:58]} 32. Rxa7+ {[%emt 0:00:05]} Kf6 {[%emt 0:00:03]} 33. a4 {[%emt 0:03:13]} Ra5 {[%emt 0:01:36]} 34. Rb7 {[%emt 0:01:08]} Rxa4 {[%emt 0:00:05]} 35. Rxb6+ {[%emt 0:00:08]} Kg5 {[%emt 0:00:05]} 1/2-1/2